[Event "1st Chessable Sunway Formentera 2022"]
[Site "Formentera Punta Prima"]
[Date "2022.05.09"]
[Round "9.4"]
[White "Santos Ruiz, Miguel"]
[Black "Narciso Dublan, Marc"]
[Result "1-0"]
[ECO "A26"]
[WhiteElo "2586"]
[BlackElo "2464"]
[Annotator "TA"]
[PlyCount "81"]
[EventDate "2022.05.05"]
[EventType "swiss"]
[EventCountry "ESP"]
[SourceTitle "playchess.com"]
[Source "ChessBase"]
[SourceQuality "1"]
[TimeControl "40/5400+30:1800+30"]

{[%evp 22,81,24,21,28,14,57,42,63,39,40,35,51,48,48,13,20,23,161,141,154,156,151,157,206,143,152,130,184,177,162,94,206,202,182,180,183,181,756,642,657,779,829,647,670,645,685,641,1631,804,691,546,546,496,768,698,1167,1160,1080,1072,869,807]} 1. c4 {[%emt 0:00:03]} e5 {[%emt 0:00:18]} 2. Nc3 {[%emt 0:00:22]} Nc6 {[%emt 0:00:21]} 3. g3 {[%emt 0:00:38]} g6 {[%emt 0:00:26]} 4. Bg2 {[%emt 0:00:13]} Bg7 {[%emt 0:00:06]} 5. Rb1 {[%emt 0:04:03]} a5 {[%emt 0:00:50]} 6. a3 {[%emt 0:02:08]} Nf6 {[%emt 0:03:24]} 7. b4 {[%emt 0:03:22]} axb4 {[%emt 0:00:07]} 8. axb4 {[%emt 0:00:03]} O-O {[%emt 0:01:19]} 9. d3 {[%emt 0:04:05]} d6 {[%emt 0:02:43]} 10. Nf3 {[%emt 0:09:17]} h6 {[%emt 0:03:07]} 11. O-O {[%emt 0:01:58]} Be6 {[%emt 0:00:12]} 12. e4 {[%emt 0:01:44]} Qd7 {[%emt 0:08:44] A26: English Opening vs King's Indian with ...Nc6 and d3.} 13. Nd5 {[%emt 0:04:53]} Ne8 {[%emt 0:00:13]} 14. Be3 {[%emt 0:02:10] [#]} Bh3 $146 {[%emt 0:11:31] White is slightly better.} ({Predecessor:} 14... f5 15. Nh4 f4 16. Nxg6 fxe3 17. Nxf8 exf2+ 18. Rxf2 Bxf8 19. Qh5 Bg7 20. Rbf1 Ne7 {1-0 (37) Do Carmo,G (1398)-Custodio,L (1953) Cuiaba 2021}) 15. Qd2 {[%emt 0:14:22] White is more active.} Kh7 {[%emt 0:05:04]} 16. Bxh3 {[%emt 0:08:49]} Qxh3 {[%emt 0:00:05]} 17. Nh4 {[%emt 0:00:17]} f5 {[%emt 0:12:53][%cal Of5f4]} 18. f4 {[%emt 0:10:37][%cal Bf2f4,Bf4f5][%mdl 32]} fxe4 {[%emt 0:14:33]} 19. dxe4 {[%emt 0:00:16] f5 is the strong threat.} Nf6 {[%emt 0:06:38] [#]} (19... Qg4 $11) 20. f5 $1 $18 {[%emt 0:04:43]} g5 {[%emt 0:01:58]} 21. Ng6 {[%emt 0:05:41] Hoping for b5.} Rf7 {[%emt 0:01:38]} 22. Nxf6+ {[%emt 0:00:50]} Bxf6 {[%emt 0:01:52]} (22... Rxf6 $16 23. Qd3 Ra2) 23. Ra1 {[%emt 0:08:25]} Rxa1 {[%emt 0:04:58]} 24. Rxa1 {[%emt 0:00:02]} Nd4 {[%emt 0:04:50]} (24... Kg7 $16 25. Qa2 h5) 25. Bxd4 {[%emt 0:02:13]} exd4 {[%emt 0:00:03] [#]} 26. Ra8 {[%emt 0:01:32]} (26. c5 $1 $18 {Black must now prevent Qa2.} d3 27. Rd1) 26... h5 {[%emt 0:03:01]} (26... Bg7 $16 {was worth a try.}) 27. Nf8+ {[%emt 0:01:06]} Kh6 {[%emt 0:01:29][%cal Ob7b5]} 28. Ne6 $36 {[%emt 0:00:02][%cal Oa8h8][%mdl 2048] Rh8+! would kill now. White has strong initiative.} Qg4 {[%emt 0:02:43]} 29. Rg8 {[%emt 0:01:03] And now c5 would win.} ({But not} 29. Nxd4 $2 Qxe4 30. Nc2 Be5 $19) 29... Rg7 $2 {[%emt 0:05:58]} (29... Kh7 30. Rxg5 Bxg5 31. Nxg5+ Kg8) 30. Nxg7 {[%emt 0:01:11] White is clearly winning.} Bxg7 {[%emt 0:00:06][%mdl 4096] Endgame KQR-KQB} 31. Qd3 {[%emt 0:00:54][%cal Oe4e5] aiming for e5!} h4 {[%emt 0:01:12]} 32. Re8 {[%emt 0:04:25]} Be5 {[%emt 0:01:55][%cal Rh4g3]} 33. Kg2 {[%emt 0:00:57]} hxg3 {[%emt 0:01:31]} 34. hxg3 {[%emt 0:00:38]} Bxg3 {[%emt 0:01:01]} 35. Re6+ {[%emt 0:01:13]} (35. Qxg3 $142 Qe2+ 36. Qf2 Qg4+ 37. Kh1 Qh4+ 38. Kg2 Qg4+ 39. Kh1 Qh4+ 40. Qxh4+ gxh4 41. Rh8+ Kg7 42. Rxh4) 35... Kg7 {[%emt 0:00:24]} 36. Qf3 {[%emt 0:00:53]} Qxf3+ {[%emt 0:00:23]} 37. Kxf3 {[%emt 0:00:01]} Be1 {[%emt 0:00:08]} (37... Bf4 $142 38. Re7+ Kh6 39. Rxc7 d3) 38. b5 {[%emt 0:01:56]} Ba5 {[%emt 0:01:13]} 39. Rg6+ {[%emt 0:00:11]} Kf7 {[%emt 0:00:02]} 40. Ke2 {[%emt 0:00:00]} Bb6 {[%emt 0:00:00]} 41. Rxg5 {[%emt 0:00:21] Weighted Error Value: White=0.24 (precise) /Black=0.39} 1-0

[Event "1st Chessable Sunway Formentera 2022"]
[Site "Formentera Punta Prima"]
[Date "2022.05.09"]
[Round "9.5"]
[White "Batsiashvili, Nino"]
[Black "Martirosyan, Haik M."]
[Result "0-1"]
[ECO "E43"]
[WhiteElo "2463"]
[BlackElo "2652"]
[Annotator "TA"]
[PlyCount "84"]
[EventDate "2022.05.05"]
[EventType "swiss"]
[EventCountry "ESP"]
[SourceTitle "playchess.com"]
[Source "ChessBase"]
[SourceQuality "1"]
[TimeControl "40/5400+30:1800+30"]

{[%evp 21,84,35,36,0,0,0,0,0,0,0,0,0,0,0,0,0,0,0,0,7,0,0,0,0,0,-85,-89,-83,-81,-77,-74,-131,-133,-131,-131,-147,-139,-198,-110,-118,-110,-114,-114,-103,-91,-112,-115,-199,-221,-206,-208,-218,-211,-214,-216,-220,-184,-2456,-2458,-2077,-2055,-1851,-1564,-1268,-747]} 1. d4 {[%emt 0:00:59]} Nf6 {[%emt 0:00:09]} 2. c4 {[%emt 0:00:08]} e6 {[%emt 0:00:12]} 3. Nc3 {[%emt 0:00:04]} Bb4 {[%emt 0:00:12]} 4. Nf3 {[%emt 0:00:04]} b6 {[%emt 0:03:04]} 5. e3 {[%emt 0:00:19]} Bb7 {[%emt 0:00:29]} 6. Bd3 {[%emt 0:00:10]} O-O {[%emt 0:02:12]} 7. O-O {[%emt 0:00:10]} Bxc3 {[%emt 0:03:22]} 8. bxc3 {[%emt 0:00:02]} d6 {[%emt 0:00:18]} 9. Nd2 {[%emt 0:06:03]} e5 {[%emt 0:02:18]} 10. e4 {[%emt 0:02:52]} Nc6 {[%emt 0:03:58]} 11. Bb2 {[%emt 0:15:30]} Re8 {[%emt 0:03:54] [#]} 12. f4 $146 {[%emt 0:01:22] E43: Nimzo-Indian: Rubinstein: 4...b6.} ({Predecessor:} 12. Re1 Na5 13. Qc2 Ba6 14. Rad1 Qd7 15. Bf1 c5 16. g3 Re7 17. Bc1 h6 18. d5 Nh7 19. f3 Rb8 {½-½ (96) Vitiugov,N (2719)-Morozevich,A (2739) Tromsoe 2013}) 12... exf4 {[%emt 0:09:48]} 13. Rxf4 {[%emt 0:00:17]} Ne7 {[%emt 0:00:09]} 14. Rxf6 {[%emt 0:04:24] The position is equal.} gxf6 {[%emt 0:00:06]} 15. Qh5 {[%emt 0:00:07]} Ng6 {[%emt 0:06:34]} 16. Rf1 $1 {[%emt 0:01:00][%cal Ba1f1,Bf1f3,Bf3f6][%mdl 32]} Re6 {[%emt 0:00:52]} 17. Bc1 {[%emt 0:09:33]} Qe7 {[%emt 0:05:03]} 18. Rf3 {[%emt 0:03:22]} Bxe4 {[%emt 0:04:01]} 19. Nxe4 {[%emt 0:01:02]} Rxe4 {[%emt 0:00:05]} 20. Bxe4 {[%emt 0:00:20]} Qxe4 {[%emt 0:00:06]} 21. Rxf6 {[%emt 0:00:46]} Re8 {[%emt 0:03:03]} 22. Rf1 {[%emt 0:06:31]} c5 $40 {[%emt 0:05:26][%mdl 128] Black is up to no good.} 23. Bd2 {[%emt 0:07:04]} (23. Qd1 $11 {keeps the balance.}) 23... cxd4 $17 {[%emt 0:04:51]} 24. Re1 {[%emt 0:04:44]} Qc6 {[%emt 0:01:24] White must now prevent ...Rxe1+. Black is more active.} 25. Rxe8+ {[%emt 0:03:39]} Qxe8 {[%emt 0:00:08]} 26. cxd4 {[%emt 0:00:02][%mdl 4096] Endgame KQB-KQN} ({White should try} 26. Qf3) 26... Qe4 {[%emt 0:03:39]} 27. Qd5 {[%emt 0:06:11] [#]} Qe2 {[%emt 0:04:50]} 28. Qg5 {[%emt 0:01:07]} Qxc4 {[%emt 0:00:59]} 29. Be3 {[%emt 0:08:29]} (29. Qf6 $17 Qe2 30. Bh6 (30. Qg5 Qd3 $17) 30... Qe1+ 31. Qf1) 29... Qe6 {[%emt 0:09:39]} (29... Qxa2 $19 {And now ...Qe2 would win.} 30. h3 Qe6) 30. h4 {[%emt 0:03:53][%cal Bh2h4,Bh4h5][%mdl 32]} f6 {[%emt 0:01:01]} ({But not} 30... Qxa2 31. h5 h6 32. Qg3 $16 (32. Qxh6 Nf8 $14) (32. Qd8+ Kg7 $14)) 31. Qg3 {[%emt 0:00:40]} Kf7 {[%emt 0:00:06]} ({Don't do} 31... Qxa2 32. h5 $16) 32. Bf2 {[%emt 0:04:57]} Qd5 {[%emt 0:04:48]} 33. h5 {[%emt 0:03:30] [#]} Ne7 {[%emt 0:01:24]} 34. Qf4 {[%emt 0:00:14]} (34. a3 $17 {keeps fighting.}) 34... Qxa2 $19 {[%emt 0:02:46]} 35. Qxd6 {[%emt 0:00:06]} Qb1+ {[%emt 0:00:11]} 36. Kh2 {[%emt 0:00:22]} Qf5 {[%emt 0:00:35][%csl LRf2,LRh5]} 37. Kg1 {[%emt 0:02:07]} Qxh5 {[%emt 0:02:22]} 38. Qc7 {[%emt 0:00:01]} Qa5 {[%emt 0:01:24]} 39. d5 $2 {[%emt 0:06:17]} (39. Qc2) 39... Qa1+ {[%emt 0:00:45] Black is clearly winning.} 40. Kh2 {[%emt 0:00:00]} Qe5+ {[%emt 0:00:00]} 41. Qxe5 {[%emt 0:00:39]} fxe5 {[%emt 0:00:09]} 42. Bg3 {[%emt 0:00:13]} Ng6 {[%emt 0:05:22] Weighted Error Value: White=0.41/Black=0.05 (flawless)} 0-1

[Event "1st Chessable Sunway Formentera 2022"]
[Site "Formentera Punta Prima"]
[Date "2022.05.09"]
[Round "9.6"]
[White "Romanishin, Oleg M"]
[Black "Jarmula, Lukasz"]
[Result "1/2-1/2"]
[ECO "D12"]
[WhiteElo "2400"]
[BlackElo "2459"]
[Annotator "TA"]
[PlyCount "47"]
[EventDate "2022.05.05"]
[EventType "swiss"]
[EventCountry "ESP"]
[SourceTitle "playchess.com"]
[Source "ChessBase"]
[SourceQuality "1"]
[TimeControl "40/5400+30:1800+30"]

{[%evp 18,47,6,10,17,9,10,8,10,7,14,10,13,33,14,0,0,8,3,0,0,0,8,8,34,0,24,24,24,0,13,-11]} 1. d4 {[%emt 0:05:22]} d5 {[%emt 0:06:00]} 2. Nf3 {[%emt 0:00:00]} Nf6 {[%emt 0:00:04]} 3. c4 {[%emt 0:00:00]} c6 {[%emt 0:00:13]} 4. e3 {[%emt 0:02:06]} Bf5 {[%emt 0:01:23]} 5. Bd3 {[%emt 0:00:18]} Bxd3 {[%emt 0:00:17]} 6. Qxd3 {[%emt 0:00:06]} e6 {[%emt 0:00:08]} 7. O-O {[%emt 0:00:18]} Nbd7 {[%emt 0:00:17]} 8. Nc3 {[%emt 0:00:08]} Be7 {[%emt 0:00:44] 8...Bb4 might become the main line.} 9. e4 {[%emt 0:01:33]} dxe4 {[%emt 0:00:44]} 10. Nxe4 {[%emt 0:00:07]} c5 {[%emt 0:00:36] D12: Slav Defence: 3 Nf3 Nf6 4 e3 Bf5.} 11. Be3 {[%emt 0:15:42][%cal Rd4c5,Bc1e3,Be3d4,Bd4c3][%mdl 32]} cxd4 {[%emt 0:04:41] [#]} 12. Bxd4 $146 {[%emt 0:14:53]} ({Predecessor:} 12. Qxd4 Qc7 13. Rfd1 Nxe4 14. Qxe4 Nf6 15. Qe5 Qxe5 16. Nxe5 O-O 17. Kf1 Rfc8 18. Rac1 {½-½ (33) Costigan,R (2301)-King,A (2249) ICC INT 2012}) 12... O-O {[%emt 0:02:17]} 13. Rad1 {[%emt 0:01:03]} Qa5 {[%emt 0:11:12]} 14. Bc3 {[%emt 0:10:06]} Qh5 {[%emt 0:06:46]} 15. Nxf6+ {[%emt 0:08:33]} Nxf6 {[%emt 0:00:21]} 16. b3 {[%emt 0:01:46]} a6 {[%emt 0:07:04]} 17. h3 {[%emt 0:08:50]} b5 {[%emt 0:03:50]} 18. Be5 {[%emt 0:00:55]} bxc4 {[%emt 0:02:03]} 19. bxc4 {[%emt 0:01:26]} Rac8 {[%emt 0:01:31]} 20. Qb3 $1 {[%emt 0:06:31]} Rfe8 {[%emt 0:06:25]} 21. Qa4 {[%emt 0:04:28]} a5 {[%emt 0:01:49]} 22. Qxa5 {[%emt 0:01:23]} Rxc4 {[%emt 0:01:44]} 23. Qa6 {[%emt 0:03:13]} (23. Rc1 $5 {[%cal Rc1c4]} Re4 24. Qb5 $11) 23... Rcc8 {[%emt 0:01:35]} 24. Rc1 {[%emt 0:02:17] A balanced but interesting game.  Weighted Error Value: White=0.07 (flawless) /Black=0.06 (flawless)} 1/2-1/2

[Event "1st Chessable Sunway Formentera 2022"]
[Site "Formentera Punta Prima"]
[Date "2022.05.09"]
[Round "9.7"]
[White "Song, Julien"]
[Black "Alinasab, Mobina"]
[Result "1-0"]
[ECO "E04"]
[WhiteElo "2388"]
[BlackElo "2373"]
[Annotator "TA"]
[PlyCount "79"]
[EventDate "2022.05.05"]
[EventType "swiss"]
[EventCountry "ESP"]
[SourceTitle "playchess.com"]
[Source "ChessBase"]
[SourceQuality "1"]
[TimeControl "40/5400+30:1800+30"]

{[%evp 9,79,19,19,12,4,14,18,0,12,15,39,34,39,59,60,51,48,44,44,53,58,24,35,31,45,8,42,34,41,36,11,0,9,-5,2,12,10,41,81,8,10,13,6,7,6,8,2,0,33,0,28,0,87,75,75,63,63,66,91,85,12838,12839,12839,245,12839,12839,29989,29990,29990,29991,29996,29997]} 1. d4 {[%emt 0:00:13]} d5 {[%emt 0:00:17]} 2. c4 {[%emt 0:00:34]} e6 {[%emt 0:00:07]} 3. Nf3 {[%emt 0:00:42]} Nf6 {[%emt 0:00:12]} 4. g3 {[%emt 0:00:42]} dxc4 {[%emt 0:00:15]} 5. Bg2 {[%emt 0:00:45]} c6 {[%emt 0:00:13]} 6. a4 {[%emt 0:00:57] E04: Open Catalan: 5 Nf3.} Bb4+ {[%emt 0:00:12]} 7. Bd2 {[%emt 0:00:49]} a5 {[%emt 0:00:09]} 8. Qc2 {[%emt 0:00:56] The position is equal.} Bxd2+ {[%emt 0:00:19]} 9. Qxd2 {[%emt 0:01:06]} b5 {[%emt 0:00:19]} 10. axb5 {[%emt 0:01:19]} cxb5 {[%emt 0:00:07]} 11. Qg5 {[%emt 0:00:29][%csl LRb5,LRg7]} O-O {[%emt 0:00:31]} 12. Qxb5 {[%emt 0:00:33]} Ba6 {[%emt 0:01:16]} 13. Qa4 {[%emt 0:01:27]} Qb6 {[%emt 0:10:06]} 14. O-O {[%emt 0:15:05]} Bb5 {[%emt 0:08:18]} 15. Qc2 {[%emt 0:19:22]} Nc6 {[%emt 0:01:14]} 16. Na3 {[%emt 0:02:00]} Nb4 {[%emt 0:04:22]} 17. Qd2 {[%emt 0:00:49] [#]} Rac8 $146 {[%emt 0:13:53][%cal Oc4c3]} (17... Ne4 $5 {[%cal Re4d2]} 18. Qf4 Nd6 $11) ({Predecessor:} 17... Rfd8 18. Rfc1 Rac8 19. Ne5 Rxd4 20. Qe3 Nbd5 21. Bxd5 Nxd5 22. Qf3 f5 23. Qh5 Be8 {0-1 (42) Baykal,M (1805)-Yaver,F (2096) Antalya 2018}) 18. Ne5 {[%emt 0:16:08]} Rfd8 $1 {[%emt 0:01:21]} 19. Nxb5 {[%emt 0:02:01]} Qxb5 {[%emt 0:00:02]} 20. Rfd1 {[%emt 0:00:32]} Ne8 {[%emt 0:10:20]} 21. Qf4 {[%emt 0:08:48]} f6 {[%emt 0:01:16]} 22. Nf3 {[%emt 0:00:40]} Nd5 {[%emt 0:04:18] Against Qe3} 23. Qe4 {[%emt 0:06:22]} Rd6 {[%emt 0:05:31] [#]} 24. Qc2 {[%emt 0:06:17]} (24. Bh3 $1 $16 {[%cal Rh3e6]} Rcc6 25. Rdb1) 24... c3 $11 {[%emt 0:02:38]} 25. bxc3 {[%emt 0:00:15]} Nxc3 {[%emt 0:05:11]} 26. Re1 {[%emt 0:00:10]} a4 {[%emt 0:04:28]} 27. e4 {[%emt 0:03:34]} Qb3 {[%emt 0:00:51]} 28. Qd2 {[%emt 0:00:26]} a3 {[%emt 0:04:32]} 29. e5 {[%emt 0:02:53]} fxe5 {[%emt 0:00:24]} 30. Nxe5 {[%emt 0:00:13]} Qb2 {[%emt 0:02:05]} (30... Nf6 $11) 31. Qe3 {[%emt 0:00:58]} Qb4 {[%emt 0:12:44]} 32. Bh3 {[%emt 0:06:48][%cal Oe5f7] Threatens to win with Nf7!} Nc7 $1 {[%emt 0:04:02]} 33. d5 $36 {[%emt 0:00:01][%mdl 2048] White has good play.} N7xd5 {[%emt 0:03:59]} 34. Qa7 {[%emt 0:00:02]} a2 $2 {[%emt 0:01:22][%mdl 8192] [#] This costs Black the game.} (34... Rf8 $16) 35. Bxe6+ $1 $18 {[%emt 0:01:09][%mdl 576] Decoy} Rxe6 {[%emt 0:00:27]} 36. Qf7+ {[%emt 0:00:02]} Kh8 {[%emt 0:00:07]} 37. Qxe6 {[%emt 0:00:15]} Rf8 {[%emt 0:00:59]} 38. Nf7+ {[%emt 0:00:41] White mates.} Rxf7 {[%emt 0:00:23]} 39. Qxf7 {[%emt 0:00:20]} h6 {[%emt 0:00:36]} 40. Re8+ {[%emt 0:00:00] Weighted Error Value: White=0.09 (flawless) /Black=0.26 (precise)} 1-0

[Event "1st Chessable Sunway Formentera 2022"]
[Site "Formentera Punta Prima"]
[Date "2022.05.08"]
[Round "9.8"]
[White "Real, Thibault"]
[Black "Soham Das"]
[Result "0-1"]
[ECO "A80"]
[WhiteElo "2262"]
[BlackElo "2266"]
[Annotator "TA"]
[PlyCount "60"]
[EventDate "2022.05.05"]
[EventType "swiss"]
[EventCountry "ESP"]
[SourceTitle "playchess.com"]
[Source "ChessBase"]
[SourceQuality "1"]
[TimeControl "40/5400+30:1800+30"]

{[%evp 9,60,-5,6,-2,-16,-14,-16,-16,-14,-30,-25,-31,-16,-128,-118,-110,-111,-114,-120,-129,-106,-114,-108,-106,-97,-112,-117,-157,-133,-135,-95,-123,-114,-424,-439,-426,-421,-694,-690,-677,-672,-634,-651,-950,-775,-766,-742,-739,-692,-1714,-1546,-1947,-1702]} 1. d4 {[%emt 0:15:06]} f5 {[%emt 0:16:02]} 2. Nc3 {[%emt 0:00:00]} Nf6 {[%emt 0:01:17]} 3. Bg5 {[%emt 0:00:00]} d5 {[%emt 0:00:04]} 4. h3 {[%emt 0:00:00]} e6 {[%emt 0:03:47]} 5. e3 {[%emt 0:00:00]} Be7 {[%emt 0:02:53] [#]} 6. Bxf6 $146 {[%emt 0:00:00] A80: Dutch Defence: Unusual White second moves.} ({Predecessor:} 6. g4 O-O 7. Qd2 Ne4 8. Bxe7 Qxe7 9. Nxe4 fxe4 10. O-O-O c5 11. Bg2 cxd4 12. exd4 Qh4 {½-½ (35) Negulescu,A (2450)-Grivas,E (2505) Varna 1994}) 6... Bxf6 {[%emt 0:05:01]} 7. g4 {[%emt 0:01:56]} c5 {[%emt 0:03:10]} 8. gxf5 {[%emt 0:06:47] The position is equal.} O-O $1 {[%emt 0:00:59]} 9. Nf3 {[%emt 0:18:04]} Nc6 {[%emt 0:12:53]} 10. Bg2 {[%emt 0:07:42]} cxd4 {[%emt 0:02:06]} ({But not} 10... exf5 11. dxc5 d4 12. Nxd4 $11 (12. exd4 Re8+ 13. Kf1 Be6 $11)) 11. Nxd4 {[%emt 0:02:52]} (11. exd4 $11 Re8 12. O-O) 11... Bxd4 {[%emt 0:11:25]} 12. exd4 {[%emt 0:00:02]} Rxf5 {[%emt 0:00:16]} 13. Ne2 {[%emt 0:05:54]} Bd7 {[%emt 0:01:00]} 14. O-O {[%emt 0:09:20]} Qh4 {[%emt 0:00:24]} 15. f4 {[%emt 0:03:48]} Raf8 {[%emt 0:03:54] Black is more active.} 16. Qe1 {[%emt 0:02:17]} Qh6 {[%emt 0:01:37]} 17. Qg3 {[%emt 0:01:51]} Ne7 {[%emt 0:02:31]} 18. Bf3 {[%emt 0:03:12]} R5f6 {[%emt 0:02:09] [#] Strongly threatening ...Rg6.} 19. Bg4 {[%emt 0:01:55]} Ng6 {[%emt 0:04:19]} 20. Rae1 {[%emt 0:00:58]} Bb5 {[%emt 0:01:18]} ({Not} 20... Nxf4 21. Rxf4 Rxf4 22. Nxf4 Qxf4 23. Qxf4 Rxf4 24. Bxe6+ Bxe6 25. Rxe6 $15) 21. f5 $2 {[%emt 0:04:51][%mdl 8192] This move loses the game for White.} (21. Kh2 $17) 21... exf5 $19 {[%emt 0:03:08][%cal Be6f5,Bf5f4][%mdl 32] Black is clearly winning.} 22. Bf3 {[%emt 0:02:10]} f4 {[%emt 0:03:36]} 23. Bxd5+ {[%emt 0:00:37]} (23. Qg4 $142 Kh8 24. Kf2) 23... Kh8 {[%emt 0:00:04]} 24. Qb3 {[%emt 0:02:09]} Bd7 {[%emt 0:00:17]} 25. Rf3 {[%emt 0:06:17]} Rb6 {[%emt 0:00:44]} 26. Qc4 {[%emt 0:01:35]} Rc8 {[%emt 0:03:04]} 27. Qxc8+ {[%emt 0:03:16]} Bxc8 {[%emt 0:00:27]} 28. Nxf4 {[%emt 0:00:10]} Bd7 {[%emt 0:00:29]} 29. Be6 {[%emt 0:01:30]} Qg5+ {[%emt 0:03:21]} 30. Bg4 {[%emt 0:00:31]} h5 {[%emt 0:04:26] Weighted Error Value: White=0.81/Black=0.18 (very precise)} 0-1

[Event "1st Chessable Sunway Formentera 2022"]
[Site "Formentera Punta Prima"]
[Date "2022.05.09"]
[Round "9.9"]
[White "Eugene, Floryan"]
[Black "Vrolijk, Liam"]
[Result "1-0"]
[ECO "C56"]
[WhiteElo "2370"]
[BlackElo "2467"]
[Annotator "TA"]
[PlyCount "85"]
[EventDate "2022.05.05"]
[EventType "swiss"]
[EventCountry "ESP"]
[SourceTitle "playchess.com"]
[Source "ChessBase"]
[SourceQuality "1"]
[TimeControl "40/5400+30:1800+30"]

{[%evp 15,85,0,0,0,0,-12,-7,-7,41,6,16,10,10,12,20,15,20,16,16,-31,-18,-21,-24,-51,-36,-35,0,-1,0,-22,0,0,0,0,0,0,0,0,0,0,27,27,22,32,60,67,111,79,210,210,250,185,509,140,153,110,127,109,108,95,181,181,183,174,219,142,154,158,157,153,199,195]} 1. e4 {[%emt 0:00:03]} e5 {[%emt 0:00:08][%cal Be7e5,Be5d4][%mdl 32]} 2. Nf3 {[%emt 0:00:10]} Nc6 {[%emt 0:00:08]} 3. Bc4 {[%emt 0:00:10]} Nf6 {[%emt 0:00:09]} 4. d4 {[%emt 0:00:36]} exd4 {[%emt 0:01:11]} 5. e5 {[%emt 0:00:12]} d5 {[%emt 0:02:12]} 6. Bb5 {[%emt 0:00:12]} Nd7 {[%emt 0:00:11]} 7. O-O {[%emt 0:02:00]} Be7 {[%emt 0:03:54]} 8. Bxc6 {[%emt 0:00:15]} bxc6 {[%emt 0:00:08]} 9. Nxd4 {[%emt 0:00:10] C56: Two Knights: 4 d4 exd4 5 0-0 Nxe4.} Nb8 {[%emt 0:00:18]} 10. Nc3 {[%emt 0:00:11]} O-O {[%emt 0:02:52]} 11. Qf3 {[%emt 0:00:09] The position is equal.} Be6 {[%emt 0:08:38]} (11... a5 $11) 12. Rd1 {[%emt 0:18:03]} Qd7 {[%emt 0:02:52] [#]} 13. Qg3 $146 {[%emt 0:01:07] Hoping for Bh6.} ({Predecessor:} 13. h3 c5 14. Nxe6 fxe6 15. Qg4 Rf5 16. Bh6 Bf8 17. Ne4 Qf7 18. Nf6+ Kh8 19. Rxd5 exd5 20. Qxf5 gxf6 {1-0 (30) Polivanov,A (2454)-Ostrovskiy,A (2425) Chess.com INT 2021}) 13... Kh8 {[%emt 0:04:39]} 14. Bg5 {[%emt 0:02:08]} Bxg5 $1 {[%emt 0:14:06]} 15. Qxg5 {[%emt 0:00:11]} c5 {[%emt 0:00:17]} 16. Nde2 {[%emt 0:07:47][%cal Oc3d5]} d4 {[%emt 0:04:40]} 17. Nf4 {[%emt 0:13:53]} (17. b3 $11 {should be considered.}) 17... Bf5 {[%emt 0:06:15]} 18. Ncd5 {[%emt 0:12:54][%cal Od5f6]} h6 {[%emt 0:02:03]} 19. Qg3 {[%emt 0:02:33]} Nc6 $1 {[%emt 0:04:59]} 20. c3 {[%emt 0:04:56]} (20. Nh5 Bg6 21. Ndf4 Qf5 $17) 20... Rae8 {[%emt 0:11:56]} ({But not} 20... g5 21. Nf6 Qc8 22. Nd3 dxc3 23. bxc3 $16) (20... Rad8 $5 {[%cal Rc6e5]}) 21. cxd4 {[%emt 0:02:54]} Nxd4 {[%emt 0:04:05]} 22. Nc3 {[%emt 0:12:44]} Qc6 {[%emt 0:05:37]} (22... Re7 $5 {[%cal Rf8e8]}) 23. Rac1 {[%emt 0:03:06][%cal Ba1c1,Bc1c3,Bc3f3][%mdl 32]} ({Reject} 23. Nh5 Rg8 $15) 23... Rxe5 {[%emt 0:02:10]} 24. Rxd4 $40 {[%emt 0:00:32][%mdl 128] White attacks.} cxd4 {[%emt 0:00:25]} 25. Nh5 $1 {[%emt 0:00:13][%csl Gh5,LRe5,LRg7][%cal Rg3g7] Pair of Knights!} Qg6 {[%emt 0:01:59]} 26. Qxe5 {[%emt 0:00:08][%cal Oc3e2] aiming for Ne2!} dxc3 {[%emt 0:03:05]} 27. Nf4 {[%emt 0:00:28]} Qg5 {[%emt 0:00:47] Strongly threatening ...cxb2.} (27... Qd6 $5 {[%cal Rd6e5]} 28. Qxf5 Rd8 $11) 28. Rxc3 {[%emt 0:01:50]} Bb1 {[%emt 0:00:36][%csl LRa2,LRe5]} 29. Qxc7 {[%emt 0:02:46]} Rd8 {[%emt 0:02:53][%cal Rd8d1]} 30. h3 $1 {[%emt 0:00:16]} Rd4 {[%emt 0:01:33]} 31. Rf3 {[%emt 0:04:04]} Bxa2 {[%emt 0:04:53]} (31... Kh7 $16 {was worth a try.}) 32. Qxa7 $18 {[%emt 0:00:33]} Rd1+ {[%emt 0:00:11]} 33. Kh2 {[%emt 0:00:07]} Ra1 {[%emt 0:01:30]} (33... Bd5 {is a better chance.} 34. Nxd5 Qxd5) 34. Qd4 $2 {[%emt 0:01:46]} (34. Qb8+ $18 Kh7 35. Ra3) 34... Re1 $16 {[%emt 0:01:00]} 35. Re3 {[%emt 0:04:52] Against Qe5} Rxe3 {[%emt 0:01:36]} 36. Qxe3 {[%emt 0:00:40][%mdl 4096] Endgame KQB-KQN} Qb5 {[%emt 0:00:07]} 37. Qd4 {[%emt 0:00:35]} Qb8 {[%emt 0:00:20] [#]} (37... Bc4 $16 {was necessary.}) 38. b4 $1 $18 {[%emt 0:00:42] White is clearly better.} Bb3 {[%emt 0:01:36]} 39. Kg1 {[%emt 0:00:24] Black must now prevent Nh5.} Ba4 {[%emt 0:00:42]} 40. Nd3 {[%emt 0:01:02]} Bb5 {[%emt 0:00:26]} 41. Ne5 {[%emt 0:06:36]} Qe8 {[%emt 0:00:21]} 42. Kh2 {[%emt 0:09:25] White is more active.} f6 {[%emt 0:00:35]} (42... Kg8 $16 {keeps fighting.} 43. Qd5 Ba4) 43. Nc4 {[%emt 0:00:59] Weighted Error Value: White=0.26 (precise) /Black=0.23 (precise)} 1-0